fUST/lending_fUST_20260601
["ID","MTS","AMOUNT","RATE_DAILY","PERIOD"]
[423619725,1780263032000,-6799.5813097,0.00012614,2]
[423619723,1780263032000,-157.3483902,0.00012614,2]
[423619722,1780263032000,-152.0,0.00011448,2]
[423619708,1780263032000,-300.0,9.178e-05,2]
[423619710,1780263032000,-300.0,9.178e-05,2]
[423619721,1780263032000,-300.0,0.00011104,2]
[423619706,1780263032000,-300.0,9.178e-05,2]
[423619715,1780263032000,-420.0,0.00010095,2]
[423619727,1780263032000,-459.28562003,0.00012827,2]
[423619881,1780263038000,-500.0,0.00013698,2]
[423619871,1780263038000,-500.0,0.00013698,2]
[423619879,1780263038000,-500.0,0.00013698,2]
[423619877,1780263038000,-500.0,0.00013698,2]
[423619867,1780263038000,-1130.1591,0.00013698,2]
[423619859,1780263038000,-159.76199353,0.00013598,2]
[423619869,1780263038000,-283.08953976,0.00013698,2]
[423619861,1780263038000,-500.0,0.00013689,2]
[423619874,1780263038000,-500.0,0.00013698,2]
[423619857,1780263038000,-13369.82097076,0.00013596,2]
[423619865,1780263038000,-187.1849461,0.00013689,2]
[423619882,1780263038000,-500.0,0.00013698,2]
[423619863,1780263038000,-500.0,0.00013689,2]
[423619896,1780263038000,-720.47,0.00013698,2]
[423619910,1780263038000,-500.0,0.00013698,2]
[423619884,1780263038000,-325.44790114,0.00013698,2]
[423619904,1780263038000,-500.0,0.00013698,2]
[423619908,1780263038000,-500.0,0.00013698,2]
[423619906,1780263038000,-500.0,0.00013698,2]
[423619889,1780263038000,-500.0,0.00013698,2]
[423619902,1780263038000,-500.0,0.00013698,2]
[423619898,1780263038000,-500.0,0.00013698,2]
[423619892,1780263038000,-500.0,0.00013698,2]
[423619890,1780263038000,-500.0,0.00013698,2]
[423619900,1780263038000,-500.0,0.00013698,2]
[423619886,1780263038000,-500.0,0.00013698,2]
[423619894,1780263038000,-500.0,0.00013698,2]
[423620012,1780263039000,-500.0,0.00013698,2]
[423619984,1780263039000,-500.71102334,0.00013698,2]
[423619975,1780263039000,-500.0,0.00013698,2]
[423619977,1780263039000,-500.0,0.00013698,2]
[423619994,1780263039000,-500.0,0.00013698,2]
[423619986,1780263039000,-501.64462704,0.00013698,2]
[423619978,1780263039000,-500.0,0.00013698,2]
[423619990,1780263039000,-503.32507449,0.00013698,2]
[423619992,1780263039000,-500.0,0.00013698,2]
[423619982,1780263039000,-502.62131229,0.00013698,2]
[423620000,1780263039000,-500.0,0.00013698,2]
[423619980,1780263039000,-500.0,0.00013698,2]
[423619998,1780263039000,-500.0,0.00013698,2]
[423620002,1780263039000,-500.0,0.00013698,2]
[423620004,1780263039000,-1323.77,0.00013698,2]
[423620008,1780263039000,-500.0,0.00013698,2]
[423620014,1780263039000,-500.0,0.00013698,2]
[423620018,1780263039000,-534.57,0.00013698,2]
[423620010,1780263039000,-500.0,0.00013698,2]
[423620006,1780263039000,-500.0,0.00013698,2]
[423619988,1780263039000,-500.84777848,0.00013698,2]
[423619996,1780263039000,-500.0,0.00013698,2]
[423619973,1780263039000,-500.0,0.00013698,2]
[423619915,1780263039000,-500.0,0.00013698,2]
[423619961,1780263039000,-500.0,0.00013698,2]
[423619926,1780263039000,-500.0,0.00013698,2]
[423619930,1780263039000,-500.0,0.00013698,2]
[423619911,1780263039000,-294.15,0.00013698,2]
[423619913,1780263039000,-500.66752509,0.00013698,2]
[423619928,1780263039000,-500.0,0.00013698,2]
[423619924,1780263039000,-500.0,0.00013698,2]
[423619921,1780263039000,-500.0,0.00013698,2]
[423619917,1780263039000,-500.0,0.00013698,2]
[423619932,1780263039000,-500.0,0.00013698,2]
[423620016,1780263039000,-739.4,0.00013698,2]
[423619919,1780263039000,-438.85846126,0.00013698,2]
[423619971,1780263039000,-500.0,0.00013698,2]
[423619922,1780263039000,-500.0,0.00013698,2]
[423619936,1780263039000,-500.0,0.00013698,2]
[423619938,1780263039000,-500.0,0.00013698,2]
[423619941,1780263039000,-500.0,0.00013698,2]
[423619942,1780263039000,-500.0,0.00013698,2]
[423619955,1780263039000,-500.0,0.00013698,2]
[423619967,1780263039000,-500.0,0.00013698,2]
[423619962,1780263039000,-500.0,0.00013698,2]
[423619969,1780263039000,-500.0,0.00013698,2]
[423619957,1780263039000,-500.0,0.00013698,2]
[423619964,1780263039000,-500.0,0.00013698,2]
[423619959,1780263039000,-500.0,0.00013698,2]
[423619934,1780263039000,-500.0,0.00013698,2]
[423620020,1780263039000,-861.27,0.00013698,2]
[423620044,1780263039000,-627.95,0.00013698,2]
[423620058,1780263039000,-1279.87,0.00013698,2]
[423620091,1780263039000,-500.0,0.00013698,2]
[423620083,1780263039000,-500.0,0.00013698,2]
[423620085,1780263039000,-500.0,0.00013698,2]
[423620106,1780263039000,-500.0,0.00013698,2]
[423620099,1780263039000,-871.26,0.00013698,2]
[423620022,1780263039000,-500.0,0.00013698,2]
[423620101,1780263039000,-500.0,0.00013698,2]
[423620108,1780263039000,-500.0,0.00013698,2]
[423620096,1780263039000,-500.0,0.00013698,2]
[423620113,1780263039000,-325.704967,0.00013699,2]
[423620081,1780263039000,-500.0,0.00013698,2]
[423620104,1780263039000,-500.0,0.00013698,2]
[423620115,1780263039000,-1000.0,0.00013699,2]
[423620120,1780263039000,-177.116918,0.00013838,2]
[423620130,1780263039000,-1130.1591,0.00013972,2]
[423620132,1780263039000,-500.0,0.00013972,2]
[423620134,1780263039000,-500.0,0.00013972,2]
[423620137,1780263039000,-500.0,0.00013972,2]
[423620139,1780263039000,-500.0,0.00013972,2]
[423620125,1780263039000,-177.92825402,0.00013929,2]
[423620127,1780263039000,-600.0,0.00013971,2]
[423620123,1780263039000,-150.10596193,0.00013915,2]
[423620118,1780263039000,-526.43145115,0.00013699,2]
[423620078,1780263039000,-606.62,0.00013698,2]
[423620111,1780263039000,-500.0,0.00013698,2]
[423620094,1780263039000,-500.0,0.00013698,2]
[423620062,1780263039000,-500.0,0.00013698,2]
[423620034,1780263039000,-500.0,0.00013698,2]
[423620054,1780263039000,-500.0,0.00013698,2]
[423620088,1780263039000,-500.0,0.00013698,2]
[423620038,1780263039000,-500.0,0.00013698,2]
[423620028,1780263039000,-500.0,0.00013698,2]
[423620064,1780263039000,-500.0,0.00013698,2]
[423620042,1780263039000,-500.0,0.00013698,2]
[423620050,1780263039000,-1863.65,0.00013698,2]
[423620040,1780263039000,-500.0,0.00013698,2]
[423620052,1780263039000,-500.0,0.00013698,2]
[423620056,1780263039000,-500.0,0.00013698,2]
[423620046,1780263039000,-586.51,0.00013698,2]
[423620066,1780263039000,-500.0,0.00013698,2]
[423620076,1780263039000,-631.99,0.00013698,2]
[423620068,1780263039000,-500.0,0.00013698,2]
[423620048,1780263039000,-500.0,0.00013698,2]
[423620032,1780263039000,-500.0,0.00013698,2]
[423620071,1780263039000,-500.0,0.00013698,2]
[423620036,1780263039000,-500.0,0.00013698,2]
[423620026,1780263039000,-500.0,0.00013698,2]
[423620024,1780263039000,-500.0,0.00013698,2]
[423620030,1780263039000,-1301.03,0.00013698,2]
[423620060,1780263039000,-1319.07,0.00013698,2]
[423620352,1780263040000,-500.0,0.00014246,2]
[423620350,1780263040000,-500.0,0.00014246,2]
[423620351,1780263040000,-500.0,0.00014246,2]
[423620353,1780263040000,-500.0,0.00014246,2]
[423620356,1780263040000,-1323.77,0.00014246,2]
[423620355,1780263040000,-500.0,0.00014246,2]
[423620359,1780263040000,-500.0,0.00014246,2]
[423620354,1780263040000,-483.07049408,0.00014246,2]
[423620357,1780263040000,-510.01,0.00014246,2]
[423620365,1780263040000,-861.27,0.00014246,2]
[423620363,1780263040000,-534.57,0.00014246,2]
[423620348,1780263040000,-500.0,0.00014246,2]
[423620358,1780263040000,-500.0,0.00014246,2]
[423620361,1780263040000,-739.4,0.00014246,2]
[423620338,1780263040000,-500.0,0.00014246,2]
[423620340,1780263040000,-500.0,0.00014246,2]
[423620189,1780263040000,-500.0,0.00013972,2]
[423620214,1780263040000,-472.0913195,0.00013972,2]
[423620205,1780263040000,-500.0,0.00013972,2]
[423620203,1780263040000,-222.5683597,0.00013972,2]
[423620216,1780263040000,-500.0,0.00013972,2]
[423620220,1780263040000,-1323.77,0.00013972,2]
[423620212,1780263040000,-500.0,0.00013972,2]
[423620222,1780263040000,-500.0,0.00013972,2]
[423620207,1780263040000,-500.0,0.00013972,2]
[423620187,1780263040000,-500.0,0.00013972,2]
[423620209,1780263040000,-500.0,0.00013972,2]
[423620236,1780263040000,-500.0,0.00013972,2]
[423620240,1780263040000,-500.0,0.00013972,2]
[423620242,1780263040000,-500.0,0.00013972,2]
[423620227,1780263040000,-500.0,0.00013972,2]
[423620234,1780263040000,-861.27,0.00013972,2]
[423620245,1780263040000,-500.0,0.00013972,2]
[423620232,1780263040000,-534.57,0.00013972,2]
[423620248,1780263040000,-500.0,0.00013972,2]
[423620238,1780263040000,-500.0,0.00013972,2]
[423620225,1780263040000,-500.0,0.00013972,2]
[423620230,1780263040000,-739.4,0.00013972,2]
[423620201,1780263040000,-500.0,0.00013972,2]
[423620180,1780263040000,-500.0,0.00013972,2]
[423620346,1780263040000,-500.0,0.00014246,2]
[423620143,1780263040000,-500.0,0.00013972,2]
[423620147,1780263040000,-720.47,0.00013972,2]
[423620145,1780263040000,-500.0,0.00013972,2]
[423620149,1780263040000,-500.0,0.00013972,2]
[423620158,1780263040000,-500.0,0.00013972,2]
[423620168,1780263040000,-500.0,0.00013972,2]
[423620160,1780263040000,-500.0,0.00013972,2]
[423620170,1780263040000,-500.0,0.00013972,2]
[423620182,1780263040000,-500.0,0.00013972,2]
[423620162,1780263040000,-500.0,0.00013972,2]
[423620166,1780263040000,-500.0,0.00013972,2]
[423620175,1780263040000,-500.0,0.00013972,2]
[423620172,1780263040000,-500.0,0.00013972,2]
[423620177,1780263040000,-500.0,0.00013972,2]
[423620193,1780263040000,-500.0,0.00013972,2]
[423620195,1780263040000,-500.0,0.00013972,2]
[423620191,1780263040000,-500.0,0.00013972,2]
[423620197,1780263040000,-500.0,0.00013972,2]
[423620199,1780263040000,-500.0,0.00013972,2]
[423620164,1780263040000,-500.0,0.00013972,2]
[423620243,1780263040000,-1301.03,0.00013972,2]
[423620185,1780263040000,-500.0,0.00013972,2]
[423620258,1780263040000,-627.95,0.00013972,2]
[423620303,1780263040000,-712.1043,0.00014246,2]
[423620307,1780263040000,-500.0,0.00014246,2]
[423620309,1780263040000,-500.0,0.00014246,2]
[423620311,1780263040000,-500.0,0.00014246,2]
[423620313,1780263040000,-720.47,0.00014246,2]
[423620305,1780263040000,-500.0,0.00014246,2]
[423620317,1780263040000,-500.0,0.00014246,2]
[423620329,1780263040000,-500.0,0.00014246,2]
[423620319,1780263040000,-500.0,0.00014246,2]
[423620299,1780263040000,-500.0,0.00013972,2]
[423620327,1780263040000,-500.0,0.00014246,2]
[423620323,1780263040000,-500.0,0.00014246,2]
[423620325,1780263040000,-500.0,0.00014246,2]
[423620331,1780263040000,-500.0,0.00014246,2]
[423620333,1780263040000,-500.0,0.00014246,2]
[423620342,1780263040000,-280.32,0.00014246,2]
[423620335,1780263040000,-500.0,0.00014246,2]
[423620344,1780263040000,-500.0,0.00014246,2]
[423620337,1780263040000,-500.0,0.00014246,2]
[423620250,1780263040000,-500.0,0.00013972,2]
[423620315,1780263040000,-500.0,0.00014246,2]
[423620301,1780263040000,-159.76199351,0.00014032,2]
[423620321,1780263040000,-500.0,0.00014246,2]
[423620295,1780263040000,-500.0,0.00013972,2]
[423620259,1780263040000,-586.51,0.00013972,2]
[423620297,1780263040000,-508.72528545,0.00013972,2]
[423620254,1780263040000,-500.0,0.00013972,2]
[423620252,1780263040000,-500.0,0.00013972,2]
[423620255,1780263040000,-500.0,0.00013972,2]
[423620261,1780263040000,-500.0,0.00013972,2]
[423620266,1780263040000,-500.0,0.00013972,2]
[423620270,1780263040000,-1319.07,0.00013972,2]
[423620263,1780263040000,-1863.65,0.00013972,2]
[423620274,1780263040000,-500.0,0.00013972,2]
[423620268,1780263040000,-1279.87,0.00013972,2]
[423620276,1780263040000,-500.0,0.00013972,2]
[423620280,1780263040000,-606.62,0.00013972,2]
[423620278,1780263040000,-631.99,0.00013972,2]
[423620288,1780263040000,-500.0,0.00013972,2]
[423620282,1780263040000,-500.0,0.00013972,2]
[423620290,1780263040000,-500.0,0.00013972,2]
[423620293,1780263040000,-871.26,0.00013972,2]
[423620286,1780263040000,-500.0,0.00013972,2]
[423620272,1780263040000,-500.0,0.00013972,2]
[423620284,1780263040000,-500.0,0.00013972,2]
[423620452,1780263041000,-500.0,0.0001452,2]
[423620454,1780263041000,-500.0,0.0001452,2]
[423620449,1780263041000,-500.0,0.0001452,2]
[423620448,1780263041000,-500.0,0.0001452,2]
[423620446,1780263041000,-289.74,0.0001452,2]
[423620431,1780263041000,-232.12,0.0001452,2]
[423620433,1780263041000,-500.0,0.0001452,2]
[423620429,1780263041000,-159.76199351,0.00014466,2]
[423620427,1780263041000,-500.0,0.00014246,2]
[423620466,1780263041000,-204.4,0.0001452,2]
[423620425,1780263041000,-500.0,0.00014246,2]
[423620444,1780263041000,-500.0,0.0001452,2]
[423620464,1780263041000,-500.0,0.0001452,2]
[423620490,1780263041000,-534.57,0.0001452,2]
[423620462,1780263041000,-592.64,0.0001452,2]
[423620457,1780263041000,-500.0,0.0001452,2]
[423620468,1780263041000,-500.0,0.0001452,2]
[423620470,1780263041000,-500.0,0.0001452,2]
[423620472,1780263041000,-500.0,0.0001452,2]
[423620474,1780263041000,-500.0,0.0001452,2]
[423620475,1780263041000,-500.0,0.0001452,2]
[423620488,1780263041000,-739.4,0.0001452,2]
[423620478,1780263041000,-500.0,0.0001452,2]
[423620492,1780263041000,-861.27,0.0001452,2]
[423620494,1780263041000,-500.0,0.0001452,2]
[423620441,1780263041000,-500.0,0.0001452,2]
[423620482,1780263041000,-500.0,0.0001452,2]
[423620460,1780263041000,-500.0,0.0001452,2]
[423620439,1780263041000,-500.0,0.0001452,2]
[423620391,1780263041000,-586.51,0.00014246,2]
[423620437,1780263041000,-496.74,0.0001452,2]
[423620484,1780263041000,-1323.77,0.0001452,2]
[423620369,1780263041000,-500.0,0.00014246,2]
[423620367,1780263041000,-500.0,0.00014246,2]
[423620371,1780263041000,-500.0,0.00014246,2]
[423620372,1780263041000,-500.0,0.00014246,2]
[423620374,1780263041000,-500.0,0.00014246,2]
[423620382,1780263041000,-500.0,0.00014246,2]
[423620380,1780263041000,-500.0,0.00014246,2]
[423620388,1780263041000,-627.95,0.00014246,2]
[423620378,1780263041000,-500.0,0.00014246,2]
[423620376,1780263041000,-1301.03,0.00014246,2]
[423620384,1780263041000,-500.0,0.00014246,2]
[423620386,1780263041000,-500.0,0.00014246,2]
[423620435,1780263041000,-720.47,0.0001452,2]
[423620396,1780263041000,-500.0,0.00014246,2]
[423620394,1780263041000,-1863.65,0.00014246,2]
[423620400,1780263041000,-1319.07,0.00014246,2]
[423620402,1780263041000,-500.0,0.00014246,2]
[423620404,1780263041000,-500.0,0.00014246,2]
[423620406,1780263041000,-500.0,0.00014246,2]
[423620417,1780263041000,-500.0,0.00014246,2]
[423620398,1780263041000,-1279.87,0.00014246,2]
[423620419,1780263041000,-500.0,0.00014246,2]
[423620409,1780263041000,-631.99,0.00014246,2]
[423620411,1780263041000,-606.62,0.00014246,2]
[423620421,1780263041000,-500.0,0.00014246,2]
[423620415,1780263041000,-167.53,0.00014246,2]
[423620423,1780263041000,-871.26,0.00014246,2]
[423620393,1780263041000,-500.0,0.00014246,2]
[423620486,1780263041000,-500.0,0.0001452,2]
[423620413,1780263041000,-500.0,0.00014246,2]
[423620496,1780263041000,-238.16375513,0.0001452,2]
[423620571,1780263041000,-800.0,0.00014737,2]
[423620616,1780263041000,-534.57,0.00014794,2]
[423620573,1780263041000,-177.116918,0.00014745,2]
[423620565,1780263041000,-2843.6903669,0.00014729,2]
[423620561,1780263041000,-410.80305162,0.00014702,2]
[423620563,1780263041000,-809.33866997,0.00014705,2]
[423620559,1780263041000,-800.0,0.00014697,2]
[423620579,1780263041000,-720.47,0.00014794,2]
[423620577,1780263041000,-546.16,0.00014794,2]
[423620575,1780263041000,-800.0,0.00014758,2]
[423620580,1780263041000,-500.0,0.00014794,2]
[423620584,1780263041000,-500.0,0.00014794,2]
[423620589,1780263041000,-500.0,0.00014794,2]
[423620557,1780263041000,-800.0,0.00014689,2]
[423620602,1780263041000,-500.0,0.00014794,2]
[423620587,1780263041000,-500.0,0.00014794,2]
[423620592,1780263041000,-500.0,0.00014794,2]
[423620596,1780263041000,-500.0,0.00014794,2]
[423620604,1780263041000,-291.4447879,0.00014794,2]
[423620600,1780263041000,-456.12,0.00014794,2]
[423620582,1780263041000,-500.0,0.00014794,2]
[423620594,1780263041000,-306.02,0.00014794,2]
[423620598,1780263041000,-500.0,0.00014794,2]
[423620480,1780263041000,-500.0,0.0001452,2]
[423620609,1780263041000,-500.0,0.00014794,2]
[423620612,1780263041000,-500.0,0.00014794,2]
[423620611,1780263041000,-1323.77,0.00014794,2]
[423620614,1780263041000,-739.4,0.00014794,2]
[423620591,1780263041000,-500.0,0.00014794,2]
[423620555,1780263041000,-800.0,0.00014688,2]
[423620607,1780263041000,-208.5552121,0.00014794,2]
[423620567,1780263041000,-800.0,0.0001473,2]
[423620569,1780263041000,-800.0,0.00014736,2]
[423620498,1780263041000,-500.0,0.0001452,2]
[423620517,1780263041000,-1279.87,0.0001452,2]
[423620502,1780263041000,-1301.03,0.0001452,2]
[423620510,1780263041000,-586.51,0.0001452,2]
[423620515,1780263041000,-500.0,0.0001452,2]
[423620521,1780263041000,-500.0,0.0001452,2]
[423620508,1780263041000,-627.95,0.0001452,2]
[423620504,1780263041000,-500.0,0.0001452,2]
[423620525,1780263041000,-500.0,0.0001452,2]
[423620506,1780263041000,-500.0,0.0001452,2]
[423620512,1780263041000,-1863.65,0.0001452,2]
[423620523,1780263041000,-500.0,0.0001452,2]
[423620527,1780263041000,-631.99,0.0001452,2]
[423620500,1780263041000,-500.0,0.0001452,2]
[423620529,1780263041000,-606.62,0.0001452,2]
[423620519,1780263041000,-1319.07,0.0001452,2]
[423620551,1780263041000,-800.0,0.00014672,2]
[423620546,1780263041000,-300.21192386,0.0001462,2]
[423620545,1780263041000,-176.6468518,0.0001462,2]
[423620535,1780263041000,-391.2,0.0001452,2]
[423620549,1780263041000,-355.85650803,0.00014635,2]
[423620537,1780263041000,-500.0,0.0001452,2]
[423620533,1780263041000,-500.0,0.0001452,2]
[423620539,1780263041000,-871.26,0.0001452,2]
[423620553,1780263041000,-800.0,0.00014676,2]
[423620541,1780263041000,-500.0,0.0001452,2]
[423620543,1780263041000,-500.0,0.0001452,2]
[423620531,1780263041000,-500.0,0.0001452,2]
[423620683,1780263042000,-800.0,0.00014809,2]
[423620701,1780263042000,-800.0,0.00014881,2]
[423620687,1780263042000,-800.0,0.00014811,2]
[423620681,1780263042000,-500.0,0.00014794,2]
[423620689,1780263042000,-800.0,0.00014818,2]
[423620691,1780263042000,-800.0,0.00014821,2]
[423620695,1780263042000,-800.0,0.00014847,2]
[423620699,1780263042000,-800.0,0.00014867,2]
[423620693,1780263042000,-800.0,0.0001484,2]
[423620697,1780263042000,-800.0,0.00014858,2]
[423620685,1780263042000,-800.0,0.0001481,2]
[423620721,1780263042000,-8017.60105646,0.00015,2]
[423620705,1780263042000,-800.0,0.00014892,2]
[423620707,1780263042000,-603.34480499,0.000149,2]
[423620719,1780263042000,-10000.0,0.00015,2]
[423620718,1780263042000,-151.0,0.00015,2]
[423620708,1780263042000,-800.0,0.000149,2]
[423620709,1780263042000,-159.76199351,0.000149,2]
[423620711,1780263042000,-800.0,0.00014923,2]
[423620723,1780263042000,-12407.16275043,0.00015,2]
[423620716,1780263042000,-151.0,0.00015,2]
[423620712,1780263042000,-1189.52875543,0.00014946,2]
[423620679,1780263042000,-500.0,0.00014794,2]
[423620703,1780263042000,-800.0,0.00014888,2]
[423620677,1780263042000,-1872.02796234,0.00014794,2]
[423620638,1780263042000,-500.0,0.00014794,2]
[423620675,1780263042000,-871.26,0.00014794,2]
[423620625,1780263042000,-861.27,0.00014794,2]
[423620627,1780263042000,-500.0,0.00014794,2]
[423620629,1780263042000,-500.0,0.00014794,2]
[423620640,1780263042000,-205.69900529,0.00014794,2]
[423620632,1780263042000,-1301.03,0.00014794,2]
[423620643,1780263042000,-627.95,0.00014794,2]
[423620646,1780263042000,-822.79602118,0.00014794,2]
[423620636,1780263042000,-2910.59418838,0.00014794,2]
[423620645,1780263042000,-586.51,0.00014794,2]
[423620631,1780263042000,-500.0,0.00014794,2]
[423620634,1780263042000,-500.0,0.00014794,2]
[423620648,1780263042000,-1851.29104765,0.00014794,2]
[423620650,1780263042000,-1863.65,0.00014794,2]
[423620652,1780263042000,-500.0,0.00014794,2]
[423620655,1780263042000,-1279.87,0.00014794,2]
[423620661,1780263042000,-201.31,0.00014794,2]
[423620657,1780263042000,-1319.07,0.00014794,2]
[423620663,1780263042000,-500.0,0.00014794,2]
[423620659,1780263042000,-500.0,0.00014794,2]
[423620665,1780263042000,-631.99,0.00014794,2]
[423620667,1780263042000,-606.62,0.00014794,2]
[423620669,1780263042000,-500.0,0.00014794,2]
[423620671,1780263042000,-500.0,0.00014794,2]
[423620673,1780263042000,-500.0,0.00014794,2]
[423620725,1780263042000,-151.0,0.00015,2]
[423620713,1780263042000,-542902.72046899,0.00015,2]
[423620714,1780263042000,-38034.80877736,0.00015,2]
[423620788,1780263042000,-500.0,0.00015068,2]
[423620778,1780263042000,-500.0,0.00015068,2]
[423620790,1780263042000,-500.0,0.00015068,2]
[423620792,1780263042000,-500.0,0.00015068,2]
[423620784,1780263042000,-500.0,0.00015068,2]
[423620782,1780263042000,-500.0,0.00015068,2]
[423620786,1780263042000,-500.0,0.00015068,2]
[423620796,1780263042000,-500.0,0.00015068,2]
[423620780,1780263042000,-500.0,0.00015068,2]
[423620794,1780263042000,-1323.77,0.00015068,2]
[423620800,1780263042000,-534.57,0.00015068,2]
[423620817,1780263042000,-586.51,0.00015068,2]
[423620813,1780263042000,-500.0,0.00015068,2]
[423620798,1780263042000,-739.4,0.00015068,2]
[423620810,1780263042000,-1301.03,0.00015068,2]
[423620811,1780263042000,-500.0,0.00015068,2]
[423620806,1780263042000,-500.0,0.00015068,2]
[423620819,1780263042000,-1863.65,0.00015068,2]
[423620802,1780263042000,-861.27,0.00015068,2]
[423620804,1780263042000,-500.0,0.00015068,2]
[423620808,1780263042000,-500.0,0.00015068,2]
[423620821,1780263042000,-171.94,0.00015068,2]
[423620710,1780263042000,-800.0,0.0001492,2]
[423620777,1780263042000,-500.0,0.00015068,2]
[423620775,1780263042000,-500.0,0.00015068,2]
[423620815,1780263042000,-627.95,0.00015068,2]
[423620765,1780263042000,-180.858503,0.00015,2]
[423620731,1780263042000,-151.0,0.00015,2]
[423620769,1780263042000,-1301.1175,0.00015068,2]
[423620736,1780263042000,-151.0,0.00015,2]
[423620744,1780263042000,-692.305054,0.00015,2]
[423620732,1780263042000,-151.0,0.00015,2]
[423620742,1780263042000,-692.305054,0.00015,2]
[423620740,1780263042000,-151.0,0.00015,2]
[423620727,1780263042000,-151.0,0.00015,2]
[423620751,1780263042000,-151.0,0.00015,2]
[423620728,1780263042000,-151.0,0.00015,2]
[423620738,1780263042000,-151.0,0.00015,2]
[423620746,1780263042000,-168.190975,0.00015,2]
[423620748,1780263042000,-692.305054,0.00015,2]
[423620764,1780263042000,-180.858503,0.00015,2]
[423620750,1780263042000,-692.305054,0.00015,2]
[423620771,1780263042000,-720.47,0.00015068,2]
[423620755,1780263042000,-177.336041,0.00015,2]
[423620756,1780263042000,-177.336041,0.00015,2]
[423620760,1780263042000,-177.336041,0.00015,2]
[423620762,1780263042000,-180.858503,0.00015,2]
[423620767,1780263042000,-180.858503,0.00015,2]
[423620753,1780263042000,-151.0,0.00015,2]
[423620773,1780263042000,-637.38,0.00015068,2]
[423620734,1780263042000,-151.0,0.00015,2]
[423620758,1780263042000,-177.336041,0.00015,2]
[423620931,1780263043000,-500.0,0.00015342,2]
[423620923,1780263043000,-500.0,0.00015342,2]
[423620937,1780263043000,-1301.03,0.00015342,2]
[423620933,1780263043000,-554.22,0.00015342,2]
[423620929,1780263043000,-861.27,0.00015342,2]
[423620927,1780263043000,-534.57,0.00015342,2]
[423620917,1780263043000,-500.0,0.00015342,2]
[423620913,1780263043000,-500.0,0.00015342,2]
[423620911,1780263043000,-342.65,0.00015342,2]
[423620939,1780263043000,-500.0,0.00015342,2]
[423620915,1780263043000,-500.0,0.00015342,2]
[423620941,1780263043000,-500.0,0.00015342,2]
[423620973,1780263043000,-534.97999645,0.00015393,2]
[423620947,1780263043000,-1863.65,0.00015342,2]
[423620945,1780263043000,-586.51,0.00015342,2]
[423620951,1780263043000,-1319.07,0.00015342,2]
[423620952,1780263043000,-500.0,0.00015342,2]
[423620949,1780263043000,-1279.87,0.00015342,2]
[423620954,1780263043000,-500.0,0.00015342,2]
[423620935,1780263043000,-500.0,0.00015342,2]
[423620956,1780263043000,-631.99,0.00015342,2]
[423620969,1780263043000,-498.88,0.00015342,2]